{"text_format":"2","workbook":"xlsx","n_sheets":6,"sheets":["Summary","Al-Darkslea,Al-khosar St.","Al-Malea area intersaction","Aljmasa area-near shaker","Al khadija alkubra school","Entrance of Al dhubat area"],"not_rendered":{"charts":0,"images":0,"macros":0,"external_links":0,"defined_names":0,"comments":0,"pivot_tables":0},"unopened":[],"bounds":{"document_bytes":16777216,"sheet_cells":100000,"run_cost":"one","rows_first":2000,"rows_last":500,"rows_between":2000,"halvings":0,"cell_chars":16384,"cell_head_chars":4096},"cells_cut":0,"cells_raw":0,"read":"whole","date_system":"1900"}

{"sheet":"Summary","index":0,"n_rows":8,"n_cols":3,"rows_kept":8,"cut":false,"hidden":false,"merged":[]}
[null,"Lot2. Sewage Mosul"]
["#","Name of place","Cost $"]
[1,"Renovation of the sewerage pipe network - Al-Darkslea,Al-khosar St. near Mohammed Al-Dora school- Mosul- Ninwa Governorate ",{"$f":"'Al-Darkslea,Al-khosar St.'!F20","v":0}]
[2,"Renovation of the sewerage pipe network - Al-Malea area intersaction- Mosul- Ninwa Governorate ",{"$f":"'Al-Malea area intersaction'!F20","v":0}]
[3,"Renovation of the sewerage pipe network - Aljmasa area-near shaker Al-Dulaemi- Mosul - Ninwa Governorate ",{"$f":"'Aljmasa area-near shaker'!F22","v":0}]
[4,"Renovation of the sewerage pipe network - AL-Malea area at the end of Al khadija alkubra school road- Mosul- Ninwa Governorate ",{"$f":"'Al khadija alkubra school'!F20","v":0}]
[5,"Renovation of the sewerage pipe network-Entrance of Al dhubat area- Mosul- Ninwa Governorate ",{"$f":"'Entrance of Al dhubat area'!F20","v":0}]
[null,"Total",{"$f":"SUM(C3:C7)","v":0}]

{"sheet":"Al-Darkslea,Al-khosar St.","index":1,"n_rows":20,"n_cols":6,"rows_kept":20,"cut":false,"hidden":false,"merged":[[19,1,19,4],[0,0,0,5],[2,1,2,5],[3,1,3,5],[4,1,4,5],[5,1,5,5]]}
["Renovation of the sewerage pipe network - Al-Darkslea,Al-khosar St. near Mohammed Al-Dora school- Mosul- Ninwa Governorate "]
[null,"General Specification : "]
[null," 1- All works according to the instruction by the supervision Engineering Committee"]
[null,"2- All the materials supplied by the contractor must be according to Iraq standards"]
[null,"     3- The contractor must provide samples , catalogues and specification of materials for testing and approval by the site engineer before supplying"]
[null,"4- Contractor must pay the cost for samples including and laboratory test required"]
[null,"5- The attached  drawing are part of the BOQ"]
["#","Item Description","Unit","Qty","price$","Total $"]
[1,"Excavation\nSupply materials, machineries, and manpower to remove the damaged layers (asphalt and concrete), excavate 3m average width the subbase around the pipes to the required depth, removing the existing pipes, the work includes supporting the trench's sides and pumping out the water with all required to complete the job, remove the rubble out of the site to locations determined by the municipality of Mosul.\n","M3",108,null,{"$f":"D9*E9","v":0}]
[2,"Supply pipes:\nSupplying different types and sizes  of pipes as shown below, with all its requirements such as connection fittings of (male & female) threaded adapters , the price includes loading, transporting and unloading in the site."]
[null,"500mm UPVC pipes,with the same thickness as the existing pipes.","ML",18,null,{"$f":"D11*E11","v":0}]
[null," 315mm UPVC pipes ,with the same thickness as the existing pipes.","ML",6,null,{"$f":"D12*E12","v":0}]
[3,"Laying pipes:\nLaying the pipes according to designed slope, bedding under and around the buried pipe with 20cm thick clean sand, the work includes casting the connection joint between the existing and new pipe because of the different pipes material."]
[null,"500mm UPVC pipes","ML",18,null,{"$f":"D14*E14","v":0}]
[4,"Laying gullies pipes:\n Supply materials, machineries, and manpower to excavate and lay(315mm dia. UPVC pipes) according to designed slope, bedding under and around the pipes with 20cm thick clean sand, the work includes connecting the pipe with gully & manhole and backfilling the pipe with compacted subbase layer to the road level.","ML",6,null,{"$f":"D15*E15","v":0}]
[5,"Manholes:\nSupply materials and manpower to cast manholes by reinforced concrete mortar 1:2:4 with 30cm thick base, 25cm thick walls, reinforced with 12mm in dia. (15*15)cm, 30cm thick slab cover reinforced with two layers 12mm dia. (15*15)cm, Providing & fixing steel cover of approved quality (70cm dia.)with the road level, the work includes   excavation, formwork, repairs work and all required to complete the job as the details below:"]
[null,"internal clearance dimensions (1.2*1.2) m","EA",2,null,{"$f":"D17*E17","v":0}]
[6,"Gullies:\nSupply materials, manpower to Cast Gullies with concrete 1:2:4, internal clearance dimensions (35*55) cm, 75cm depth, base thickness 20cm, wall thickness 15cm. The work includes providing and fixing cast iron inlet cover.","EA",4,null,{"$f":"D18*E18","v":0}]
[7,"Backfilling:\nSupply materials, machineries, and manpower to backfill the working area with subbase layers every 30cm thick, approved compaction of each layers using machineries making the standard compaction required to the road level. ","M3",94,null,{"$f":"D19*E19","v":0}]
[null,"Total",null,null,null,{"$f":"SUM(F9:F19)","v":0}]

{"sheet":"Al-Malea area intersaction","index":2,"n_rows":20,"n_cols":6,"rows_kept":20,"cut":false,"hidden":false,"merged":[[19,1,19,4],[0,0,0,5],[2,1,2,5],[3,1,3,5],[4,1,4,5],[5,1,5,5]]}
["Renovation of the sewerage pipe network - Al-Malea area intersaction- Mosul- Ninwa Governorate "]
[null,"General Specification : "]
[null," 1- All works according to the instruction by the supervision Engineering Committee"]
[null,"2- All the materials supplied by the contractor must be according to Iraq standards"]
[null,"3- The contractor must provide samples , catalogues and specification of materials for testing and approval by the site engineer before supplying"]
[null,"4- Contractor must pay the cost for samples including and laboratory test required"]
[null,"5- The attached  drawing are part of the BOQ"]
["#","Item Description","Unit","Qty","price$","Total $"]
[1,"Excavation\nSupply materials, machineries, and manpower to remove the damaged layers (asphalt and concrete), excavate 3m average width the subbase around the pipes to the required depth, removing the existing pipes, the work includes supporting the trench's sides and pumping out the water with all required to complete the job, remove the rubble out of the site to locations determined by the municipality of Mosul.\n","M3",396,null,{"$f":"D9*E9","v":0}]
[2,"Supply pipes:\nSupplying different types and sizes  of pipes as shown below, with all its requirements such as connection fittings of (male & female) threaded adapters , the price includes loading, transporting and unloading in the site."]
[null,"900mm GRP pipes,with the same thickness as the existing pipes.","ML",66,null,{"$f":"D11*E11","v":0}]
[null," 315mm UPVC pipes,with the same thickness as the existing pipes.","ML",24,null,{"$f":"D12*E12","v":0}]
[3,"Laying pipes:\nLaying the pipes according to designed slope, bedding under and around the buried pipe with 20cm thick clean sand, the work includes casting the connection joint between the existing and new pipe because of the different pipes material."]
[null,"900mm GRP pipes","ML",66,null,{"$f":"D14*E14","v":0}]
[4,"Laying gullies pipes:\n Supply materials, machineries, and manpower to excavate and lay(315mm dia. UPVC pipes) according to designed slope, bedding under and around the pipes with 20cm thick clean sand, the work includes connecting the pipe with gully & manhole and backfilling the pipe with compacted subbase layer to the road level.","ML",24,null,{"$f":"D15*E15","v":0}]
[5,"Manholes:\nSupply materials and manpower to cast manholes by reinforced concrete mortar 1:2:4 with 30cm thick base, 25cm thick walls, reinforced with 12mm in dia. (15*15)cm, 30cm thick slab cover reinforced with two layers 12mm dia. (15*15)cm, Providing & fixing steel cover of approved quality (70cm dia.)with the road level, the work includes   excavation, formwork, repairs work and all required to complete the job as the details below:"]
[null,"internal clearance dimensions (1.8*1.8) m","EA",5,null,{"$f":"D17*E17","v":0}]
[6,"Gullies:\nSupply materials, manpower to Cast Gullies with concrete 1:2:4, internal clearance dimensions (35*55) cm, 75cm depth, base thickness 20cm, wall thickness 15cm. The work includes providing and fixing cast iron inlet cover.","EA",8,null,{"$f":"D18*E18","v":0}]
[7,"Backfilling:\nSupply materials, machineries, and manpower to backfill the working area with subbase layers every 30cm thick, approved compaction of each layers using machineries making the standard compaction required to the road level. ","M3",284,null,{"$f":"D19*E19","v":0}]
[null,"Total",null,null,null,{"$f":"SUM(F9:F19)","v":0}]

{"sheet":"Aljmasa area-near shaker","index":3,"n_rows":22,"n_cols":6,"rows_kept":22,"cut":false,"hidden":false,"merged":[[21,1,21,4],[0,0,0,5],[2,1,2,5],[3,1,3,5],[4,1,4,5],[5,1,5,5]]}
["Renovation of the sewerage pipe network - Aljmasa area-near shaker Al-Dulaemi- Mosul - Ninwa Governorate "]
[null,"General Specification : "]
[null," 1- All works according to the instruction by the supervision Engineering Committee"]
[null,"2- All the materials supplied by the contractor must be according to Iraq standards"]
[null,"3- The contractor must provide samples , catalogues and specification of materials for testing and approval by the site engineer before supplying"]
[null,"4- Contractor must pay the cost for samples including and laboratory test required"]
[null,"5- The attached  drawing are part of the BOQ"]
["#","Item Description","Unit","Qty","price$","Total $"]
[1,"Excavation\nSupply materials, machineries, and manpower to remove the damaged layers (asphalt and concrete), excavate 3m average width the subbase around the pipes to the required depth, removing the existing pipes, the work includes supporting the trench's sides and pumping out the water with all required to complete the job, remove the rubble out of the site to locations determined by the municipality of Mosul.\n","M3",1800,null,{"$f":"D9*E9","v":0}]
[2,"Supply pipes:\nSupplying different types and sizes  of pipes as shown below, with all its requirements such as connection fittings of (male & female) threaded adapters , the price includes loading, transporting and unloading in the site."]
[null,"900mm GRP pipes,with the same thickness as the existing pipes.","ML",50,null,{"$f":"D11*E11","v":0}]
[null,"800mm UPVC pipes,with the same thickness as the existing pipes.","ML",250,null,{"$f":"D12*E12","v":0}]
[null," 315mm UPVC pipes,with the same thickness as the existing pipes.","ML",36,null,{"$f":"D13*E13","v":0}]
[3,"Laying pipes:\nLaying the pipes according to designed slope, bedding under and around the buried pipe with 20cm thick clean sand, the work includes casting the connection joint between the existing and new pipe because of the different pipes material."]
[null,"900mm GRP pipes","ML",50,null,{"$f":"D15*E15","v":0}]
[null,"800mm UPVC pipes","ML",250,null,{"$f":"D16*E16","v":0}]
[4,"Laying gullies pipes:\n Supply materials, machineries, and manpower to excavate and lay(315mm dia. UPVC pipes) according to designed slope, bedding under and around the pipes with 20cm thick clean sand, the work includes connecting the pipe with gully & manhole and backfilling the pipe with compacted subbase layer to the road level.","ML",36,null,{"$f":"D17*E17","v":0}]
[5,"Manholes:\nSupply materials and manpower to cast manholes by reinforced concrete mortar 1:2:4 with 30cm thick base, 25cm thick walls, reinforced with 12mm in dia. (15*15)cm, 30cm thick slab cover reinforced with two layers 12mm dia. (15*15)cm, Providing & fixing steel cover of approved quality (70cm dia.)with the road level, the work includes   excavation, formwork, repairs work and all required to complete the job as the details below:"]
[null,"internal clearance dimensions (1.6*1.6) m","EA",9,null,{"$f":"D19*E19","v":0}]
[6,"Gullies:\nSupply materials, manpower to Cast Gullies with concrete 1:2:4, internal clearance dimensions (35*55) cm, 75cm depth, base thickness 20cm, wall thickness 15cm. The work includes providing and fixing cast iron inlet cover.","EA",9,null,{"$f":"D20*E20","v":0}]
[7,"Backfilling:\nSupply materials, machineries, and manpower to backfill the working area with subbase layers every 30cm thick, approved compaction of each layers using machineries making the standard compaction required to the road level. ","M3",1356,null,{"$f":"D21*E21","v":0}]
[null,"Total",null,null,null,{"$f":"SUM(F9:F21)","v":0}]

{"sheet":"Al khadija alkubra school","index":4,"n_rows":20,"n_cols":6,"rows_kept":20,"cut":false,"hidden":false,"merged":[[19,1,19,4],[0,0,0,5],[2,1,2,5],[3,1,3,5],[4,1,4,5],[5,1,5,5]]}
["Renovation of the sewerage pipe network - AL-Malea area at the end of Al khadija alkubra school road- Mosul- Ninwa Governorate "]
[null,"General Specification : "]
[null," 1- All works according to the instruction by the supervision Engineering Committee"]
[null,"2- All the materials supplied by the contractor must be according to Iraq standards"]
[null,"3- The contractor must provide samples , catalogues and specification of materials for testing and approval by the site engineer before supplying"]
[null,"4- Contractor must pay the cost for samples including and laboratory test required"]
[null,"5- The attached  drawing are part of the BOQ"]
["#","Item Description","Unit","Qty","price$","Total $"]
[1,"Excavation\nSupply materials, machineries, and manpower to remove the damaged layers (asphalt and concrete), excavate 3m average width the subbase around the pipes to the required depth, removing the existing pipes, the work includes supporting the trench's sides and pumping out the water with all required to complete the job, remove the rubble out of the site to locations determined by the municipality of Mosul.\n","M3",360,null,{"$f":"D9*E9","v":0}]
[2,"Supply pipes:\nSupplying different types and sizes  of pipes as shown below, with all its requirements such as connection fittings of (male & female) threaded adapters , the price includes loading, transporting and unloading in the site."]
[null," 600mm UPVC pipes,with the same thickness as the existing pipes.","ML",60,null,{"$f":"D11*E11","v":0}]
[null," 315mm UPVC pipes,with the same thickness as the existing pipes.","ML",30,null,{"$f":"D12*E12","v":0}]
[3,"Laying pipes:\nLaying the pipes according to designed slope, bedding under and around the buried pipe with 20cm thick clean sand, the work includes casting the connection joint between the existing and new pipe because of the different pipes material."]
[null," 600mm UPVC pipes ","ML",60,null,{"$f":"D14*E14","v":0}]
[4,"Laying gullies pipes:\n Supply materials, machineries, and manpower to excavate and lay(315mm dia. UPVC pipes) according to designed slope, bedding under and around the pipes with 20cm thick clean sand, the work includes connecting the pipe with gully & manhole and backfilling the pipe with compacted subbase layer to the road level.","ML",30,null,{"$f":"D15*E15","v":0}]
[5,"Manholes:\nSupply materials and manpower to cast manholes by reinforced concrete mortar 1:2:4 with 30cm thick base, 25cm thick walls, reinforced with 12mm in dia. (15*15)cm, 30cm thick slab cover reinforced with two layers 12mm dia. (15*15)cm, Providing & fixing steel cover of approved quality (70cm dia.)with the road level, the work includes   excavation, formwork, repairs work and all required to complete the job as the details below:"]
[null,"internal clearance dimensions (1.2*1.2) m","EA",4,null,{"$f":"D17*E17","v":0}]
[6,"Gullies:\nSupply materials, manpower to Cast Gullies with concrete 1:2:4, internal clearance dimensions (35*55) cm, 75cm depth, base thickness 20cm, wall thickness 15cm. The work includes providing and fixing cast iron inlet cover.","EA",8,null,{"$f":"D18*E18","v":0}]
[7,"Backfilling:\nSupply materials, machineries, and manpower to backfill the working area with subbase layers every 30cm thick, approved compaction of each layers using machineries making the standard compaction required to the road level. ","M3",300,null,{"$f":"D19*E19","v":0}]
[null,"Total",null,null,null,{"$f":"SUM(F9:F19)","v":0}]

{"sheet":"Entrance of Al dhubat area","index":5,"n_rows":20,"n_cols":6,"rows_kept":20,"cut":false,"hidden":false,"merged":[[19,1,19,4],[0,0,0,5],[2,1,2,5],[3,1,3,5],[4,1,4,5],[5,1,5,5]]}
["Renovation of the sewerage pipe network-Entrance of Al dhubat area- Mosul- Ninwa Governorate "]
[null,"General Specification : "]
[null," 1- All works according to the instruction by the supervision Engineering Committee"]
[null,"2- All the materials supplied by the contractor must be according to Iraq standards"]
[null,"     3- The contractor must provide samples , catalogues and specification of materials for testing and approval by the site engineer before supplying"]
[null,"4- Contractor must pay the cost for samples including and laboratory test required"]
[null,"5- The attached  drawing are part of the BOQ"]
["#","Item Description","Unit","Qty","price$","Total $"]
[1,"Excavation\nSupply materials, machineries, and manpower to remove the damaged layers (asphalt and concrete), excavate 3m average width the subbase around the pipes to the required depth, removing the existing pipes, the work includes supporting the trench's sides and pumping out the water with all required to complete the job, remove the rubble out of the site to locations determined by the municipality of Mosul.\n","M3",288,null,{"$f":"D9*E9","v":0}]
[2,"Supply pipes:\nSupplying different types and sizes  of pipes as shown below, with all its requirements such as connection fittings of (male & female) threaded adapters , the price includes loading, transporting and unloading in the site."]
[null,"1000mm GRP pipes,with the same thickness as the existing pipes.","ML",48,null,{"$f":"D11*E11","v":0}]
[null," 315mm UPVC pipes,with the same thickness as the existing pipes.","ML",18,null,{"$f":"D12*E12","v":0}]
[3,"Laying pipes:\nLaying the pipes according to designed slope, bedding under and around the buried pipe with 20cm thick clean sand, the work includes casting the connection joint between the existing and new pipe because of the different pipes material."]
[null,"1000mm GRP pipes","ML",48,null,{"$f":"D14*E14","v":0}]
[4,"Laying gullies pipes:\n Supply materials, machineries, and manpower to excavate and lay(315mm dia. UPVC pipes) according to designed slope, bedding under and around the pipes with 20cm thick clean sand, the work includes connecting the pipe with gully & manhole and backfilling the pipe with compacted subbase layer to the road level.","ML",18,null,{"$f":"D15*E15","v":0}]
[5,"Manholes:\nSupply materials and manpower to cast manholes by reinforced concrete mortar 1:2:4 with 30cm thick base, 25cm thick walls, reinforced with 12mm in dia. (15*15)cm, 30cm thick slab cover reinforced with two layers 12mm dia. (15*15)cm, Providing & fixing steel cover of approved quality (70cm dia.)with the road level, the work includes   excavation, formwork, repairs work and all required to complete the job as the details below:"]
[null,"internal clearance dimensions (1.6*1.6) m","EA",7,null,{"$f":"D17*E17","v":0}]
[6,"Gullies:\nSupply materials, manpower to Cast Gullies with concrete 1:2:4, internal clearance dimensions (35*55) cm, 75cm depth, base thickness 20cm, wall thickness 15cm. The work includes providing and fixing cast iron inlet cover.","EA",4,null,{"$f":"D18*E18","v":0}]
[7,"Backfilling:\nSupply materials, machineries, and manpower to backfill the working area with subbase layers every 30cm thick, approved compaction of each layers using machineries making the standard compaction required to the road level. ","M3",194,null,{"$f":"D19*E19","v":0}]
[null,"Total",null,null,null,{"$f":"SUM(F9:F19)","v":0}]